[Event "*** Titled Tuesday Blitz"]
[Site "Chess.com"]
[Date "2021.04.20"]
[Round "8"]
[White "noblerone"]
[Black "FMalexhdez"]
[Result "1-0"]
[WhiteElo "2395"]
[BlackElo "2224"]
[TimeControl "180+1"]
[EndTime "11:27:26 PDT"]
[Termination "noblerone won on time"]

1. d4 {[%clk 0:03:00.9]} 1... Nf6 {[%clk 0:02:37.9]} 2. Nf3 {[%clk 0:03:01.8]}
2... e6 {[%clk 0:02:35.6]} 3. Bg5 {[%clk 0:03:02.4]} 3... d5 {[%clk 0:02:34.7]}
4. e3 {[%clk 0:03:02.7]} 4... Be7 {[%clk 0:02:34.8]} 5. Bd3 {[%clk 0:03:02.9]}
5... O-O {[%clk 0:02:35.2]} 6. Nbd2 {[%clk 0:03:03.5]} 6... b6 {[%clk
0:02:35.5]} 7. c3 {[%clk 0:03:03.9]} 7... Bb7 {[%clk 0:02:35.9]} 8. O-O {[%clk
0:03:04.1]} 8... Nbd7 {[%clk 0:02:36.4]} 9. Ne5 {[%clk 0:03:04.3]} 9... Nxe5
{[%clk 0:02:35.5]} 10. dxe5 {[%clk 0:03:05.2]} 10... Ne4 {[%clk 0:02:34.4]} 11.
Bxe7 {[%clk 0:03:01.7]} 11... Qxe7 {[%clk 0:02:32.3]} 12. Bxe4 {[%clk
0:02:27.1]} 12... dxe4 {[%clk 0:02:32]} 13. Qg4 {[%clk 0:01:49.3]} 13... Qc5
{[%clk 0:02:14.1]} 14. Qf4 {[%clk 0:01:48.4]} 14... f5 {[%clk 0:02:03.4]} 15.
Nb3 {[%clk 0:01:39.5]} 15... Qe7 {[%clk 0:01:58.4]} 16. h4 {[%clk 0:01:35.1]}
16... Rfd8 {[%clk 0:01:55.4]} 17. Rad1 {[%clk 0:01:34]} 17... Rd5 {[%clk
0:01:33.6]} 18. Rd4 {[%clk 0:01:20.6]} 18... Rad8 {[%clk 0:01:27.2]} 19. Rfd1
{[%clk 0:01:15.6]} 19... c5 {[%clk 0:01:26.8]} 20. R4d2 {[%clk 0:01:03.3]} 20...
Rd3 {[%clk 0:01:16.1]} 21. h5 {[%clk 0:00:53.2]} 21... Ba6 {[%clk 0:01:09]} 22.
h6 {[%clk 0:00:47]} 22... g5 {[%clk 0:00:58.4]} 23. Qg3 {[%clk 0:00:47]} 23...
Kf8 {[%clk 0:00:51.4]} 24. Qh3 {[%clk 0:00:33.5]} 24... Qf7 {[%clk 0:00:48.3]}
25. Kh2 {[%clk 0:00:29.3]} 25... Qg6 {[%clk 0:00:45.1]} 26. g3 {[%clk
0:00:25.6]} 26... Bc4 {[%clk 0:00:39.9]} 27. Rxd3 {[%clk 0:00:22.8]} 27... Rxd3
{[%clk 0:00:35.7]} 28. Rxd3 {[%clk 0:00:20.2]} 28... exd3 {[%clk 0:00:32.4]} 29.
Nd2 {[%clk 0:00:20.7]} 29... Bxa2 {[%clk 0:00:26.8]} 30. c4 {[%clk 0:00:21.3]}
30... a6 {[%clk 0:00:25.6]} 31. Qg2 {[%clk 0:00:21.7]} 31... Qxh6+ {[%clk
0:00:23.5]} 32. Kg1 {[%clk 0:00:22.3]} 32... Qh5 {[%clk 0:00:16.9]} 33. Qa8+
{[%clk 0:00:22.1]} 33... Kg7 {[%clk 0:00:14]} 34. Qb7+ {[%clk 0:00:17.4]} 34...
Kh6 {[%clk 0:00:13.5]} 35. Qe7 {[%clk 0:00:17.1]} 35... Qg6 {[%clk 0:00:07.9]}
36. Qf8+ {[%clk 0:00:15.4]} 36... Kh5 {[%clk 0:00:06.7]} 37. Kg2 {[%clk
0:00:14.6]} 37... b5 {[%clk 0:00:05.5]} 38. Qxc5 {[%clk 0:00:14.1]} 38... bxc4
{[%clk 0:00:04.8]} 39. Qa3 {[%clk 0:00:11.1]} 39... Bb3 {[%clk 0:00:04.3]} 40.
Qa1 {[%clk 0:00:10.7]} 40... Kh6 {[%clk 0:00:03.3]} 41. Qxa6 {[%clk 0:00:09.5]}
41... f4 {[%clk 0:00:02.6]} 42. Qd6 {[%clk 0:00:05.7]} 42... fxe3 {[%clk
0:00:01.6]} 43. fxe3 {[%clk 0:00:06.6]} 43... Qf5 {[%clk 0:00:01.7]} 44. Qe7
{[%clk 0:00:05.2]} 44... Kg6 {[%clk 0:00:01.5]} 45. Qe8+ {[%clk 0:00:05.1]}
45... Kh6 {[%clk 0:00:01.4]} 46. Qe7 {[%clk 0:00:05.2]} 46... Kg6 {[%clk
0:00:01.2]} 47. Qe8+ {[%clk 0:00:05.7]} 1-0

[Event "*** Titled Tuesday Blitz"]
[Site "Chess.com"]
[Date "2021.04.20"]
[Round "8"]
[White "PowerThinking2650"]
[Black "lacafi"]
[Result "1-0"]
[WhiteElo "2401"]
[BlackElo "2223"]
[TimeControl "180+1"]
[EndTime "11:27:28 PDT"]
[Termination "PowerThinking2650 won on time"]

1. e4 {[%clk 0:03:00.9]} 1... c6 {[%clk 0:03:00]} 2. d4 {[%clk 0:02:59.9]} 2...
d5 {[%clk 0:03:00.6]} 3. Nc3 {[%clk 0:03:00.5]} 3... dxe4 {[%clk 0:03:01.5]} 4.
Nxe4 {[%clk 0:03:01.1]} 4... Nf6 {[%clk 0:03:02.2]} 5. Nxf6+ {[%clk 0:03:01.3]}
5... exf6 {[%clk 0:03:03.1]} 6. c3 {[%clk 0:03:01.9]} 6... Bd6 {[%clk
0:03:03.3]} 7. Bd3 {[%clk 0:03:02.5]} 7... O-O {[%clk 0:03:03.7]} 8. Qc2 {[%clk
0:03:03]} 8... h6 {[%clk 0:03:02.5]} 9. Ne2 {[%clk 0:03:00]} 9... Re8 {[%clk
0:03:02.6]} 10. O-O {[%clk 0:02:59.5]} 10... Nd7 {[%clk 0:03:02.5]} 11. Ng3
{[%clk 0:02:59.4]} 11... Nf8 {[%clk 0:03:01]} 12. Nf5 {[%clk 0:02:59.3]} 12...
Bc7 {[%clk 0:02:55.5]} 13. Be3 {[%clk 0:02:39.8]} 13... Be6 {[%clk 0:02:33.7]}
14. Rad1 {[%clk 0:02:17.8]} 14... Qd7 {[%clk 0:02:26.5]} 15. Rfe1 {[%clk
0:02:12.7]} 15... Rad8 {[%clk 0:02:24.5]} 16. c4 {[%clk 0:01:49.8]} 16... Qc8
{[%clk 0:02:23]} 17. b4 {[%clk 0:01:31]} 17... Ng6 {[%clk 0:02:02.8]} 18. Nxh6+
{[%clk 0:01:24.2]} 18... gxh6 {[%clk 0:01:01.4]} 19. Bxg6 {[%clk 0:01:23.2]}
19... Bxh2+ {[%clk 0:00:51.2]} 20. Kxh2 {[%clk 0:01:18.3]} 20... Qc7+ {[%clk
0:00:50.5]} 21. Kg1 {[%clk 0:01:12]} 21... fxg6 {[%clk 0:00:49.2]} 22. Qxg6+
{[%clk 0:01:11.5]} 22... Qg7 {[%clk 0:00:44.2]} 23. Qxh6 {[%clk 0:00:42.9]}
23... Qxh6 {[%clk 0:00:39.5]} 24. Bxh6 {[%clk 0:00:43.8]} 24... Bxc4 {[%clk
0:00:37.6]} 25. Re3 {[%clk 0:00:33.2]} 25... Kf7 {[%clk 0:00:33]} 26. a3 {[%clk
0:00:30.1]} 26... Kg6 {[%clk 0:00:24.4]} 27. Bf4 {[%clk 0:00:29.9]} 27... Kf5
{[%clk 0:00:24.4]} 28. Bg3 {[%clk 0:00:27.1]} 28... Rxe3 {[%clk 0:00:21.9]} 29.
fxe3 {[%clk 0:00:27.4]} 29... Ke4 {[%clk 0:00:16.8]} 30. Kf2 {[%clk 0:00:26.3]}
30... Rh8 {[%clk 0:00:16.8]} 31. Rc1 {[%clk 0:00:20.2]} 31... Kd3 {[%clk
0:00:15.1]} 32. Bf4 {[%clk 0:00:15.9]} 32... Bd5 {[%clk 0:00:12.6]} 33. Rd1+
{[%clk 0:00:15.8]} 33... Kc2 {[%clk 0:00:12.3]} 34. Rg1 {[%clk 0:00:15.3]} 34...
Kb2 {[%clk 0:00:11.8]} 35. a4 {[%clk 0:00:14.4]} 35... Kb3 {[%clk 0:00:11.3]}
36. b5 {[%clk 0:00:14.1]} 36... Kxa4 {[%clk 0:00:10.2]} 37. bxc6 {[%clk
0:00:14.4]} 37... Bxc6 {[%clk 0:00:06.6]} 38. Ra1+ {[%clk 0:00:14.3]} 38... Kb3
{[%clk 0:00:06.6]} 39. Rxa7 {[%clk 0:00:14.4]} 39... Kc4 {[%clk 0:00:06.8]} 40.
Ra1 {[%clk 0:00:12.1]} 40... Kd3 {[%clk 0:00:05.8]} 41. Ra3+ {[%clk 0:00:11.3]}
41... Ke4 {[%clk 0:00:05.5]} 42. Ra5 {[%clk 0:00:10.9]} 42... Rg8 {[%clk
0:00:04.7]} 43. g3 {[%clk 0:00:10.3]} 43... Rh8 {[%clk 0:00:04.5]} 44. Kg2
{[%clk 0:00:09.6]} 44... Kd3+ {[%clk 0:00:03.7]} 45. d5 {[%clk 0:00:09.7]} 45...
Bd7 {[%clk 0:00:01.7]} 46. Kf3 {[%clk 0:00:09.8]} 46... Rg8 {[%clk 0:00:01.2]}
47. e4 {[%clk 0:00:09]} 47... Bg4+ {[%clk 0:00:01.3]} 48. Kf2 {[%clk 0:00:08.9]}
48... Rc8 {[%clk 0:00:01.3]} 49. Ra3+ {[%clk 0:00:08.1]} 49... Kc4 {[%clk
0:00:01]} 50. d6 {[%clk 0:00:08.3]} 1-0

[Event "*** Titled Tuesday Blitz"]
[Site "Chess.com"]
[Date "2021.04.20"]
[Round "8"]
[White "poppy73"]
[Black "AttractiveMustard"]
[Result "0-1"]
[WhiteElo "2196"]
[BlackElo "2365"]
[TimeControl "180+1"]
[EndTime "11:27:28 PDT"]
[Termination "AttractiveMustard won on time"]

1. e4 {[%clk 0:03:00.9]} 1... c6 {[%clk 0:02:57.8]} 2. Nc3 {[%clk 0:02:59.6]}
2... d5 {[%clk 0:02:58]} 3. Nf3 {[%clk 0:02:59.5]} 3... Bg4 {[%clk 0:02:56.2]}
4. h3 {[%clk 0:02:58.5]} 4... Bxf3 {[%clk 0:02:56.5]} 5. Qxf3 {[%clk 0:02:59.4]}
5... Nf6 {[%clk 0:02:57.1]} 6. e5 {[%clk 0:02:53.3]} 6... Nfd7 {[%clk
0:02:56.1]} 7. d4 {[%clk 0:02:28.8]} 7... e6 {[%clk 0:02:55.2]} 8. Qg3 {[%clk
0:02:19.3]} 8... c5 {[%clk 0:02:54.5]} 9. Nb5 {[%clk 0:02:13.8]} 9... cxd4
{[%clk 0:02:39]} 10. Nxd4 {[%clk 0:02:04.2]} 10... Qb6 {[%clk 0:02:01.1]} 11. c3
{[%clk 0:01:40.8]} 11... Nc6 {[%clk 0:01:53.2]} 12. Nxc6 {[%clk 0:01:39.3]}
12... bxc6 {[%clk 0:01:54.1]} 13. f4 {[%clk 0:01:36.1]} 13... g6 {[%clk
0:01:45.3]} 14. Bd3 {[%clk 0:01:32.4]} 14... Be7 {[%clk 0:01:35.2]} 15. b3
{[%clk 0:01:24.9]} 15... Rd8 {[%clk 0:01:05.1]} 16. Be3 {[%clk 0:01:23.8]} 16...
Bc5 {[%clk 0:01:03.4]} 17. Bd2 {[%clk 0:01:18.5]} 17... Be7 {[%clk 0:00:56.7]}
18. Be3 {[%clk 0:01:12.5]} 18... c5 {[%clk 0:00:52.2]} 19. O-O {[%clk
0:01:08.6]} 19... d4 {[%clk 0:00:43.3]} 20. cxd4 {[%clk 0:01:01.1]} 20... cxd4
{[%clk 0:00:44.2]} 21. Bd2 {[%clk 0:00:51.8]} 21... Nc5 {[%clk 0:00:44.2]} 22.
Kh1 {[%clk 0:00:49.1]} 22... Nxd3 {[%clk 0:00:42.2]} 23. Qxd3 {[%clk 0:00:47.8]}
23... O-O {[%clk 0:00:42.3]} 24. Rac1 {[%clk 0:00:44.3]} 24... Rd7 {[%clk
0:00:39.3]} 25. Rc4 {[%clk 0:00:42.4]} 25... Rfd8 {[%clk 0:00:38.9]} 26. Rfc1
{[%clk 0:00:42.5]} 26... Qb7 {[%clk 0:00:33.1]} 27. Be1 {[%clk 0:00:40.1]} 27...
Qd5 {[%clk 0:00:30.7]} 28. Bf2 {[%clk 0:00:38.4]} 28... Qb5 {[%clk 0:00:22.9]}
29. a4 {[%clk 0:00:27.8]} 29... Qa6 {[%clk 0:00:20.5]} 30. Rd1 {[%clk
0:00:26.3]} 30... Qb7 {[%clk 0:00:16.7]} 31. Rb1 {[%clk 0:00:11.9]} 31... a5
{[%clk 0:00:12.1]} 32. Be1 {[%clk 0:00:11.3]} 32... Qb6 {[%clk 0:00:11.3]} 33.
Qd2 {[%clk 0:00:07.7]} 33... Rd5 {[%clk 0:00:10.2]} 34. Qd3 {[%clk 0:00:04.9]}
34... h5 {[%clk 0:00:08]} 35. Rbc1 {[%clk 0:00:03.5]} 35... Kg7 {[%clk
0:00:06.9]} 36. Rc6 {[%clk 0:00:03.4]} 36... Qb7 {[%clk 0:00:05.7]} 37. Bxa5
{[%clk 0:00:02.3]} 37... Rxa5 {[%clk 0:00:03.7]} 38. Rc7 {[%clk 0:00:02.6]}
38... Qb4 {[%clk 0:00:03.5]} 0-1

[Event "*** Titled Tuesday Blitz"]
[Site "Chess.com"]
[Date "2021.04.20"]
[Round "8"]
[White "ClydeHillKid"]
[Black "Didici"]
[Result "0-1"]
[WhiteElo "2424"]
[BlackElo "2600"]
[TimeControl "180+1"]
[EndTime "11:27:29 PDT"]
[Termination "Didici won by checkmate"]

1. e4 {[%clk 0:02:58.6]} 1... c6 {[%clk 0:02:58.8]} 2. d3 {[%clk 0:02:58.4]}
2... g6 {[%clk 0:02:50.7]} 3. Nf3 {[%clk 0:02:57.6]} 3... Bg7 {[%clk 0:02:50.7]}
4. g3 {[%clk 0:02:57.5]} 4... e5 {[%clk 0:02:48.3]} 5. Bg2 {[%clk 0:02:58.1]}
5... Ne7 {[%clk 0:02:44.2]} 6. O-O {[%clk 0:02:58.5]} 6... O-O {[%clk
0:02:40.9]} 7. d4 {[%clk 0:02:58.8]} 7... exd4 {[%clk 0:02:39.9]} 8. Nxd4 {[%clk
0:02:57.9]} 8... d5 {[%clk 0:02:37]} 9. exd5 {[%clk 0:02:55.9]} 9... Nxd5 {[%clk
0:02:36.3]} 10. Nc3 {[%clk 0:02:54.8]} 10... Nxc3 {[%clk 0:02:35]} 11. bxc3
{[%clk 0:02:55.7]} 11... Nd7 {[%clk 0:02:33.7]} 12. Bf4 {[%clk 0:02:54.6]} 12...
Nb6 {[%clk 0:02:31.4]} 13. Re1 {[%clk 0:02:49.7]} 13... Re8 {[%clk 0:02:22]} 14.
Qd3 {[%clk 0:02:47.7]} 14... Bd7 {[%clk 0:02:10.7]} 15. Rxe8+ {[%clk 0:02:33.5]}
15... Bxe8 {[%clk 0:02:09.6]} 16. h4 {[%clk 0:02:33]} 16... Nd5 {[%clk
0:01:54.6]} 17. Bd2 {[%clk 0:02:16.7]} 17... Nb6 {[%clk 0:01:31.6]} 18. Re1
{[%clk 0:02:11.1]} 18... Qd7 {[%clk 0:01:25]} 19. Bg5 {[%clk 0:02:04.4]} 19...
h6 {[%clk 0:01:23.2]} 20. Bf4 {[%clk 0:01:54.7]} 20... Rd8 {[%clk 0:01:10]} 21.
Be5 {[%clk 0:01:52.5]} 21... c5 {[%clk 0:01:03.2]} 22. Bxg7 {[%clk 0:01:49.8]}
22... Kxg7 {[%clk 0:01:01.9]} 23. Nb3 {[%clk 0:01:39]} 23... Qc7 {[%clk
0:00:51.4]} 24. Qe3 {[%clk 0:01:36.3]} 24... Na4 {[%clk 0:00:41.4]} 25. Qe7
{[%clk 0:01:23.1]} 25... Qxe7 {[%clk 0:00:37.4]} 26. Rxe7 {[%clk 0:01:24]} 26...
b6 {[%clk 0:00:35.6]} 27. Rxa7 {[%clk 0:01:15.3]} 27... Nxc3 {[%clk 0:00:34.2]}
28. Rb7 {[%clk 0:01:13]} 28... Na4 {[%clk 0:00:27.4]} 29. Kh2 {[%clk 0:01:09.1]}
29... Bb5 {[%clk 0:00:21.7]} 30. Bh3 {[%clk 0:01:03.4]} 30... Bc4 {[%clk
0:00:20.2]} 31. Bd7 {[%clk 0:00:54.1]} 31... Nc3 {[%clk 0:00:19.1]} 32. Bc6
{[%clk 0:00:44.8]} 32... Rd6 {[%clk 0:00:18.7]} 33. Be8 {[%clk 0:00:37.3]} 33...
Kf8 {[%clk 0:00:16.7]} 34. Bd7 {[%clk 0:00:29.5]} 34... Nxa2 {[%clk 0:00:16.8]}
35. Bg4 {[%clk 0:00:22.9]} 35... Nb4 {[%clk 0:00:16.8]} 36. Nc1 {[%clk
0:00:08.8]} 36... Nxc2 {[%clk 0:00:16.7]} 37. Kg2 {[%clk 0:00:08.5]} 37... Bd5+
{[%clk 0:00:15.5]} 38. Bf3 {[%clk 0:00:07.8]} 38... Bxb7 {[%clk 0:00:16.4]} 39.
Bxb7 {[%clk 0:00:08.1]} 39... b5 {[%clk 0:00:16.8]} 40. Nb3 {[%clk 0:00:07.7]}
40... c4 {[%clk 0:00:17]} 41. Nc5 {[%clk 0:00:07.6]} 41... b4 {[%clk 0:00:17.4]}
42. Ba6 {[%clk 0:00:08]} 42... b3 {[%clk 0:00:17.1]} 43. Bxc4 {[%clk 0:00:08.4]}
43... b2 {[%clk 0:00:17.5]} 44. Ba2 {[%clk 0:00:09]} 44... Nb4 {[%clk
0:00:17.3]} 45. Bb1 {[%clk 0:00:09.1]} 45... Rd1 {[%clk 0:00:17.8]} 46. Na4
{[%clk 0:00:08.8]} 46... Rxb1 {[%clk 0:00:17.5]} 47. Nxb2 {[%clk 0:00:09.7]}
47... Rxb2 {[%clk 0:00:18.4]} 48. Kf3 {[%clk 0:00:10.4]} 48... Nd3 {[%clk
0:00:17.9]} 49. Kg4 {[%clk 0:00:11.1]} 49... Nxf2+ {[%clk 0:00:18.8]} 50. Kf4
{[%clk 0:00:10.7]} 50... Nh3+ {[%clk 0:00:18.8]} 51. Kg4 {[%clk 0:00:11]} 51...
Ng1 {[%clk 0:00:19.2]} 52. h5 {[%clk 0:00:11.6]} 52... Rb4# {[%clk 0:00:19.2]}
0-1

[Event "*** Titled Tuesday Blitz"]
[Site "Chess.com"]
[Date "2021.04.20"]
[Round "8"]
[White "ukchessbomber"]
[Black "Shahaliyev"]
[Result "1-0"]
[WhiteElo "2542"]
[BlackElo "2658"]
[TimeControl "180+1"]
[EndTime "11:27:30 PDT"]
[Termination "ukchessbomber won by resignation"]

1. Nf3 {[%clk 0:03:00.9]} 1... d5 {[%clk 0:02:58.7]} 2. b3 {[%clk 0:03:01.1]}
2... c6 {[%clk 0:02:59.6]} 3. Bb2 {[%clk 0:03:02]} 3... Bg4 {[%clk 0:02:59.7]}
4. g3 {[%clk 0:03:01.9]} 4... Bxf3 {[%clk 0:02:59.3]} 5. exf3 {[%clk 0:03:02.8]}
5... e6 {[%clk 0:02:59.6]} 6. Bg2 {[%clk 0:03:03.3]} 6... Nd7 {[%clk 0:02:58.7]}
7. O-O {[%clk 0:03:03.8]} 7... Ngf6 {[%clk 0:02:59]} 8. c4 {[%clk 0:03:02.7]}
8... Bc5 {[%clk 0:02:55.7]} 9. d4 {[%clk 0:03:02.2]} 9... Be7 {[%clk 0:02:55.6]}
10. Nd2 {[%clk 0:03:02.5]} 10... a5 {[%clk 0:02:54.6]} 11. Qc2 {[%clk
0:03:02.9]} 11... a4 {[%clk 0:02:54.3]} 12. f4 {[%clk 0:02:58.6]} 12... O-O
{[%clk 0:02:53.3]} 13. Nf3 {[%clk 0:02:57.9]} 13... Ne4 {[%clk 0:02:51.5]} 14.
Ne5 {[%clk 0:02:57.5]} 14... Nd6 {[%clk 0:02:31.3]} 15. c5 {[%clk 0:02:39.7]}
15... Nf5 {[%clk 0:02:17.5]} 16. Bc3 {[%clk 0:02:40.1]} 16... Nxe5 {[%clk
0:02:01.8]} 17. fxe5 {[%clk 0:02:41]} 17... b6 {[%clk 0:02:01.9]} 18. b4 {[%clk
0:02:37.3]} 18... Qc8 {[%clk 0:01:59.3]} 19. a3 {[%clk 0:02:27.2]} 19... Qa6
{[%clk 0:01:58.3]} 20. Rfd1 {[%clk 0:02:24.7]} 20... bxc5 {[%clk 0:01:56.4]} 21.
bxc5 {[%clk 0:02:25.6]} 21... Rfb8 {[%clk 0:01:52.9]} 22. Bf1 {[%clk 0:02:24.4]}
22... Qc8 {[%clk 0:01:51.9]} 23. Bd3 {[%clk 0:02:23.5]} 23... g6 {[%clk
0:01:50.7]} 24. Rab1 {[%clk 0:02:20.6]} 24... h5 {[%clk 0:01:50.5]} 25. Rxb8
{[%clk 0:02:16.9]} 25... Qxb8 {[%clk 0:01:50.2]} 26. Rb1 {[%clk 0:02:17.2]}
26... Qc8 {[%clk 0:01:45.7]} 27. Rb4 {[%clk 0:02:16]} 27... h4 {[%clk
0:01:36.9]} 28. Rxa4 {[%clk 0:02:14.5]} 28... Rb8 {[%clk 0:01:27.9]} 29. Ra7
{[%clk 0:01:46.8]} 29... Bg5 {[%clk 0:01:23.5]} 30. Bxf5 {[%clk 0:01:14.4]}
30... gxf5 {[%clk 0:01:20.5]} 31. Bd2 {[%clk 0:01:14.8]} 31... Qd8 {[%clk
0:00:57.8]} 32. Kg2 {[%clk 0:01:02.4]} 32... Kg7 {[%clk 0:00:55.6]} 33. Qc1
{[%clk 0:01:01.2]} 33... Bxd2 {[%clk 0:00:15.5]} 34. Qxd2 {[%clk 0:01:02.1]}
34... Rb3 {[%clk 0:00:14]} 35. Qf4 {[%clk 0:00:55.5]} 35... Rd3 {[%clk
0:00:12.1]} 36. gxh4 {[%clk 0:00:44.6]} 36... Rd1 {[%clk 0:00:07]} 37. h5 {[%clk
0:00:28]} 37... Rd3 {[%clk 0:00:06.2]} 38. h4 {[%clk 0:00:19.2]} 38... Rd1
{[%clk 0:00:03.3]} 39. Qg5+ {[%clk 0:00:13.8]} 39... Qxg5+ {[%clk 0:00:03.9]}
40. hxg5 {[%clk 0:00:14.7]} 40... Rxd4 {[%clk 0:00:04.5]} 41. g6 {[%clk
0:00:15.4]} 41... Rh4 {[%clk 0:00:03.9]} 42. Rxf7+ {[%clk 0:00:16]} 42... Kh6
{[%clk 0:00:04.2]} 43. Rh7+ {[%clk 0:00:15.3]} 43... Kg5 {[%clk 0:00:04.3]} 44.
g7 {[%clk 0:00:15.9]} 44... Rg4+ {[%clk 0:00:04.8]} 45. Kf3 {[%clk 0:00:13.5]}
45... Kh4 {[%clk 0:00:05.1]} 46. h6 {[%clk 0:00:13.3]} 46... d4 {[%clk
0:00:05.3]} 47. Rh8 {[%clk 0:00:13.8]} 47... d3 {[%clk 0:00:05.8]} 48. g8=Q
{[%clk 0:00:13.9]} 48... d2 {[%clk 0:00:06.1]} 49. Qxg4+ {[%clk 0:00:12.4]}
49... fxg4+ {[%clk 0:00:05.3]} 50. Ke2 {[%clk 0:00:12.4]} 1-0

[Event "*** Titled Tuesday Blitz"]
[Site "Chess.com"]
[Date "2021.04.20"]
[Round "8"]
[White "dpopadic"]
[Black "volunteers1998"]
[Result "1/2-1/2"]
[WhiteElo "2367"]
[BlackElo "2193"]
[TimeControl "180+1"]
[EndTime "11:27:33 PDT"]
[Termination "Game drawn by repetition"]

1. e4 {[%clk 0:03:00.9]} 1... c5 {[%clk 0:02:59.8]} 2. Nc3 {[%clk 0:03:00.3]}
2... Nc6 {[%clk 0:02:58.7]} 3. f4 {[%clk 0:03:00.3]} 3... e6 {[%clk 0:02:54.2]}
4. Nf3 {[%clk 0:03:00]} 4... d5 {[%clk 0:02:50.8]} 5. Bb5 {[%clk 0:02:59.9]}
5... Ne7 {[%clk 0:02:45]} 6. d3 {[%clk 0:02:59.2]} 6... d4 {[%clk 0:02:41.4]} 7.
Bxc6+ {[%clk 0:02:58.7]} 7... Nxc6 {[%clk 0:02:36.3]} 8. Ne2 {[%clk 0:02:58.4]}
8... Be7 {[%clk 0:02:32.6]} 9. O-O {[%clk 0:02:58.3]} 9... O-O {[%clk
0:02:28.4]} 10. Bd2 {[%clk 0:02:58.4]} 10... b5 {[%clk 0:02:13.7]} 11. Qe1
{[%clk 0:02:55.4]} 11... Bb7 {[%clk 0:02:06.6]} 12. Qg3 {[%clk 0:02:48.6]} 12...
Qc7 {[%clk 0:02:02.2]} 13. Qh3 {[%clk 0:02:43.4]} 13... a5 {[%clk 0:01:54.4]}
14. f5 {[%clk 0:02:40.3]} 14... e5 {[%clk 0:01:51.7]} 15. Ng3 {[%clk 0:02:31.3]}
15... f6 {[%clk 0:01:49.1]} 16. Nh4 {[%clk 0:02:28.8]} 16... c4 {[%clk
0:01:44.7]} 17. Ng6 {[%clk 0:02:27.6]} 17... Rfe8 {[%clk 0:01:37.7]} 18. Qh5
{[%clk 0:02:12.1]} 18... Nb4 {[%clk 0:01:21.6]} 19. Bxb4 {[%clk 0:02:10.7]}
19... Bxb4 {[%clk 0:01:17.1]} 20. Rad1 {[%clk 0:01:56]} 20... c3 {[%clk
0:01:13]} 21. b3 {[%clk 0:01:53.1]} 21... a4 {[%clk 0:01:13.4]} 22. Nh1 {[%clk
0:01:46.8]} 22... axb3 {[%clk 0:01:06.4]} 23. axb3 {[%clk 0:01:46.9]} 23... Ra2
{[%clk 0:01:00.5]} 24. Rf2 {[%clk 0:01:46.5]} 24... Rea8 {[%clk 0:00:53.9]} 25.
Nh4 {[%clk 0:01:39.1]} 25... Ra1 {[%clk 0:00:47.6]} 26. Rxa1 {[%clk 0:01:37.7]}
26... Rxa1+ {[%clk 0:00:43.3]} 27. Rf1 {[%clk 0:01:38]} 27... Ra2 {[%clk
0:00:38.6]} 28. Qe8+ {[%clk 0:01:32.4]} 28... Bf8 {[%clk 0:00:34.7]} 29. Rc1
{[%clk 0:01:22.4]} 29... Qc6 {[%clk 0:00:31.3]} 30. Qd8 {[%clk 0:01:16.7]} 30...
Ra8 {[%clk 0:00:27.2]} 31. Qd5+ {[%clk 0:01:12.7]} 31... Qxd5 {[%clk 0:00:25.9]}
32. exd5 {[%clk 0:01:12.2]} 32... Bxd5 {[%clk 0:00:26.2]} 33. Nf3 {[%clk
0:01:04.2]} 33... Bxf3 {[%clk 0:00:24.3]} 34. gxf3 {[%clk 0:01:03.9]} 34... g6
{[%clk 0:00:24.9]} 35. Ng3 {[%clk 0:01:01.5]} 35... Ra2 {[%clk 0:00:23.3]} 36.
Ne4 {[%clk 0:00:52.2]} 36... Bh6 {[%clk 0:00:19.9]} 37. Rb1 {[%clk 0:00:45.9]}
37... Rxc2 {[%clk 0:00:18.7]} 38. fxg6 {[%clk 0:00:45.7]} 38... hxg6 {[%clk
0:00:16.3]} 39. Nxf6+ {[%clk 0:00:45.6]} 39... Kf7 {[%clk 0:00:16.5]} 40. Nd7
{[%clk 0:00:41.4]} 40... Rb2 {[%clk 0:00:16]} 41. Re1 {[%clk 0:00:38]} 41...
Rxb3 {[%clk 0:00:15.5]} 42. Nxe5+ {[%clk 0:00:37.5]} 42... Kg8 {[%clk 0:00:14]}
43. Ng4 {[%clk 0:00:36]} 43... Bf4 {[%clk 0:00:09.8]} 44. Nf6+ {[%clk 0:00:32]}
44... Kf7 {[%clk 0:00:08.4]} 45. Nd5 {[%clk 0:00:31.9]} 45... Rb1 {[%clk
0:00:07.7]} 46. Rxb1 {[%clk 0:00:29.6]} 46... c2 {[%clk 0:00:08]} 47. Ra1 {[%clk
0:00:26.5]} 47... c1=Q+ {[%clk 0:00:07.9]} 48. Rxc1 {[%clk 0:00:25.8]} 48...
Bxc1 {[%clk 0:00:08.4]} 49. Kf1 {[%clk 0:00:19.1]} 49... Bd2 {[%clk 0:00:08]}
50. Ke2 {[%clk 0:00:18.9]} 50... Bc3 {[%clk 0:00:07.4]} 51. Kd1 {[%clk
0:00:15.2]} 51... b4 {[%clk 0:00:07.4]} 52. Kc2 {[%clk 0:00:15.1]} 52... Ke6
{[%clk 0:00:07.3]} 53. Nf4+ {[%clk 0:00:14.4]} 53... Kf5 {[%clk 0:00:06.6]} 54.
Nd5 {[%clk 0:00:14.4]} 54... Ke6 {[%clk 0:00:05.7]} 55. Nf4+ {[%clk 0:00:13.8]}
55... Kf5 {[%clk 0:00:05.6]} 56. Nd5 {[%clk 0:00:13.8]} 56... Ke6 {[%clk
0:00:05.5]} 1/2-1/2